bitfinex/quotes_SOLUSD_20250520
["timestamp","ask_amount","ask_price","bid_price","bid_amount"]
[1747749887613,28.28254716,165.07,165.01,11.39238036]
[1747749887816,28.28254716,165.05,165.01,11.39238036]
[1747749888941,26.0,165.08,165.01,11.39238036]
[1747749889237,21.20055726,165.09,165.01,11.39238036]
[1747749889531,49.48310442,165.09,165.01,11.39238036]
[1747749889823,28.28254716,165.08,165.01,11.39238036]
[1747749890396,21.20055726,165.09,165.01,11.39238036]
[1747749890635,28.28254716,165.08,165.01,11.39238036]
[1747749891003,28.28254716,165.06,165.01,11.39238036]
[1747749891202,6.05877006,165.05,165.01,11.39238036]
[1747749892315,49.48824239,165.05,165.01,11.39238036]
[1747749892622,28.28254716,165.04,165.01,11.39238036]
[1747749893002,49.48824239,165.05,165.01,11.39238036]
[1747749893396,6.05877006,165.05,165.01,11.39238036]
[1747749894012,6.05877006,165.05,165.01,37.39238036]
[1747749894722,6.05877006,165.05,165.01,11.39238036]
[1747749895223,21.20569523,165.05,165.01,11.39238036]
[1747749895726,48.98824239,165.05,165.01,11.39238036]
[1747749896025,28.28254716,165.04,165.01,11.39238036]
[1747749896525,20.70569523,165.05,165.01,11.39238036]
[1747749897226,5.55877006,165.05,165.01,11.39238036]
[1747749897433,6.05693519,165.1,165.02,26.0]
[1747749897721,6.05693519,165.1,165.06,26.0]
[1747749898914,6.05656834,165.11,165.06,26.0]
[1747749900406,21.19798921,165.11,165.06,26.0]
[1747749901020,28.28254716,165.09,165.03,26.0]
[1747749901530,28.28254716,165.09,165.04,26.0]
[1747749901710,28.28254716,165.07,165.01,51.15238036]
[1747749902419,28.28254716,165.09,165.01,51.15238036]
[1747749902629,21.19798921,165.11,165.04,44.64964886]
[1747749903331,6.0547348,165.16,165.08,18.64964886]
[1747749903639,6.0547348,165.16,165.11,26.0]
[1747749903929,49.47411896,165.16,165.09,18.16]
[1747749904220,21.1915718,165.16,165.09,18.16]
[1747749904448,6.0547348,165.16,165.1,18.64964886]
[1747749904830,6.0547348,165.16,165.09,18.16]
[1747749905130,6.05400169,165.18,165.1,18.64964886]
[1747749905328,21.18900592,165.18,165.1,18.64964886]
[1747749905835,49.47155308,165.18,165.09,36.80964886]
[1747749906836,28.28254716,165.15,165.08,47.6]
[1747749907131,6.05620155,165.12,165.08,21.6]
[1747749907307,49.47925258,165.12,165.06,26.0]
[1747749907818,21.19670542,165.12,165.06,26.0]
[1747749908727,28.28254716,165.11,165.05,1.56]
[1747749909039,28.28254716,165.1,165.05,1.56]
[1747749909210,49.48310442,165.09,165.03,39.7]
[1747749909414,28.28254716,165.06,165.01,11.39238036]
[1747749909612,28.28254716,165.04,165.01,11.39238036]
[1747749910040,28.28254716,165.02,165.01,11.39238036]
[1747749911045,28.42470873,165.02,165.01,11.39238036]
[1747749911243,34.48458026,165.02,165.01,11.39238036]
[1747749913116,34.34241869,165.02,165.01,11.39238036]
[1747749913423,6.05987153,165.02,165.01,11.39238036]
[1747749914439,6.05950433,165.03,165.01,11.39238036]
[1747749915039,34.34205149,165.03,165.01,11.39238036]
[1747749915427,28.42470873,165.02,165.01,11.39238036]
[1747749916427,34.48458026,165.02,165.01,11.39238036]
[1747749916834,18.79181043,165.01,164.88,11.91501848]
[1747749917026,28.28254716,164.95,164.88,11.91501848]
[1747749917354,28.28254716,164.95,164.91,26.0]
[1747749917936,28.28254716,164.93,164.88,6.4568]
[1747749918249,28.28254716,164.89,164.86,8.51314665]
[1747749918632,0.14216157,164.92,164.86,8.51314665]
[1747749918633,34.34756414,164.88,164.86,8.51314665]
[1747749918835,28.28254716,164.87,164.82,1.5966]
[1747749919855,6.06428138,164.9,164.82,7.05709781]
[1747749920157,6.06317831,164.93,164.86,26.0]
[1747749920329,48.89652616,164.93,164.86,26.0]
[1747749920529,48.89652616,164.93,164.86,31.45912467]
[1747749920837,48.89652616,164.93,164.86,26.0]
[1747749921239,6.06317831,164.93,164.86,26.0]
[1747749921641,48.89652616,164.93,164.86,26.0]
[1747749921845,42.83334785,164.92,164.86,26.0]
[1747749922042,6.06317831,164.93,164.86,31.45905886]
[1747749922253,6.06207565,164.96,164.86,31.45905886]
[1747749922434,42.83334785,164.94,164.86,31.45905886]
[1747749922756,6.06281071,164.94,164.86,31.45905886]
[1747749923142,6.06134076,164.98,164.88,6.1468]
[1747749923336,6.06134076,164.98,164.91,26.0]
[1747749923652,6.06134076,164.98,164.93,26.0]
[1747749923834,18.18,165.04,164.93,47.54]
[1747749924038,61.01334785,165.04,164.97,26.0]
[1747749924241,42.83334785,165.04,164.97,26.0]
[1747749924442,6.05913717,165.04,164.97,26.0]
[1747749924963,6.05803598,165.07,164.99,26.0]
[1747749925457,48.89138383,165.07,164.99,26.0]
[1747749925842,6.05803598,165.07,165.01,26.0]
[1747749926451,6.05803598,165.07,165.01,27.563]
[1747749926654,21.20249621,165.08,165.01,27.563]
[1747749928343,6.057669,165.08,165.02,36.82964886]
[1747749928658,15.13867021,165.14,165.05,26.0]
[1747749928839,42.83334785,165.13,165.05,26.0]
[1747749929036,42.83334785,165.11,165.05,26.0]
[1747749930236,0.14216157,165.13,165.05,26.0]
[1747749930442,42.83334785,165.11,165.05,26.0]
[1747749930651,42.83334785,165.11,165.02,18.64964886]
[1747749930652,6.057669,165.08,165.03,26.0]
[1747749931752,6.05693519,165.1,165.04,18.64964886]
[1747749931959,6.05693519,165.1,165.05,26.0]
[1747749932874,6.05583479,165.13,165.05,26.0]
[1747749933047,64.02876963,165.13,165.05,26.0]
[1747749933976,6.05583479,165.13,165.06,25.04364886]
[1747749934149,6.05583479,165.13,165.07,26.0]
[1747749934506,6.05583479,165.13,165.09,26.0]
[1747749934769,6.05510142,165.15,165.11,26.0]
[1747749935241,64.02620282,165.15,165.1,1.6408]
[1747749935442,42.83334785,165.14,165.1,1.6408]
[1747749935868,21.19285497,165.15,165.1,1.6408]
[1747749936067,6.05510142,165.15,165.11,26.0]
[1747749937269,6.05436822,165.17,165.1,1.6408]
[1747749937884,6.05326876,165.2,165.13,26.0]
[1747749938061,6.05326876,165.2,165.14,65.7]
[1747749938251,6.0521697,165.23,165.15,24.70334886]
[1747749939169,15.13012845,165.24,165.18,26.0]
[1747749939345,6.05143721,165.25,165.19,26.0]
[1747749940350,6.05143721,165.25,165.2,1.6214]
[1747749940573,6.05143721,165.25,165.2,19.7814]
[1747749940872,42.83334785,165.28,165.21,44.64964886]
[1747749940873,6.05033881,165.28,165.21,44.64964886]
[1747749941275,42.83334785,165.32,165.24,26.0]
[1747749941463,42.83334785,165.31,165.24,26.0]
[1747749942009,0.14216157,165.32,165.24,44.16]
[1747749942174,42.83334785,165.3,165.24,44.16]
[1747749942378,0.14216157,165.32,165.24,26.0]
[1747749942684,42.83334785,165.28,165.23,11.3774951]
[1747749942889,42.83334785,165.27,165.23,11.3774951]
[1747749943178,6.05180343,165.24,165.23,11.3774951]
[1747749943583,48.88515128,165.24,165.23,11.3774951]
[1747749943955,49.02731285,165.24,165.23,11.3774951]
[1747749944661,6.05180343,165.24,165.23,11.3774951]
[1747749945669,6.05107103,165.26,165.23,11.3774951]
[1747749946185,6.05107103,165.26,165.23,29.5374951]
[1747749946387,6.05107103,165.26,165.23,11.3774951]
[1747749947382,6.04960677,165.3,165.23,11.3774951]
[1747749947581,21.1736237,165.3,165.23,11.3774951]
[1747749947770,64.00697155,165.3,165.23,11.3774951]
[1747749947971,42.83334785,165.29,165.23,11.3774951]
[1747749948566,64.00697155,165.3,165.23,11.3774951]
[1747749948768,21.1736237,165.3,165.24,1.6409]
[1747749949079,64.00697155,165.3,165.24,1.6409]
[1747749949279,21.1736237,165.3,165.24,1.6409]
[1747749949481,6.04960677,165.3,165.25,18.64964886]
[1747749950690,48.88295462,165.3,165.24,1.6409]
[1747749950889,42.83334785,165.29,165.24,1.6409]
[1747749951071,42.83334785,165.28,165.23,11.3774951]
[1747749951264,6.0507049,165.27,165.23,11.3774951]
[1747749951683,48.88405275,165.27,165.23,11.3774951]
[1747749951882,42.83334785,165.24,165.23,11.3774951]
[1747749952082,42.97550942,165.24,165.23,11.3774951]
[1747749952875,0.14216157,165.23,165.14,19.7319]
[1747749953084,42.83334785,165.19,165.14,19.7319]
[1747749953389,42.83334785,165.19,165.14,1.5919]
[1747749954177,42.83334785,165.17,165.11,226.6]
[1747749954370,42.83334785,165.16,165.12,18.14]
[1747749954580,42.83334785,165.15,165.1,1.5419]
[1747749954780,42.83334785,165.15,165.1,19.6819]
[1747749955377,30.25352453,165.27,165.14,26.0]
[1747749955680,42.83334785,165.24,165.16,18.64964886]
[1747749955874,42.83334785,165.24,165.17,18.14]
[1747749956079,64.01209647,165.26,165.17,18.14]
[1747749956313,6.05107103,165.26,165.19,1.5058]
[1747749957369,6.0507049,165.27,165.19,1.5058]
[1747749957591,6.0507049,165.27,165.2,18.64964886]
[1747749959092,6.04924082,165.31,165.22,18.64964886]
[1747749959290,6.04924082,165.31,165.24,18.64964886]
[1747749959597,21.17181633,165.32,165.24,35.4727267]
[1747749959806,64.00516418,165.32,165.24,30.02614925]
[1747749960299,21.17181633,165.32,165.24,61.47266983]
[1747749960717,42.83334785,165.29,165.24,11.37650039]
[1747749960872,42.83334785,165.28,165.24,11.37650039]
[1747749961498,6.0507049,165.27,165.24,11.37650039]
[1747749962012,15.12288631,165.32,165.24,30.02614925]
[1747749962207,15.12288631,165.32,165.26,26.0]
[1747749962579,6.04521823,165.42,165.27,73.98554886]
[1747749962782,42.83334785,165.38,165.27,73.98554886]
[1747749963181,42.83334785,165.37,165.27,73.98554886]
[1747749963588,6.0474117,165.36,165.27,79.43103397]
[1747749964501,6.0474117,165.36,165.28,39.58]
[1747749964502,21.16594096,165.36,165.28,39.58]
[1747749964690,63.99928881,165.36,165.28,39.58]
[1747749965578,6.04814322,165.34,165.28,39.58]
[1747749966690,21.16850127,165.34,165.27,33.8959]
[1747749966884,21.16850127,165.34,165.28,18.14]
[1747749967100,6.04814322,165.34,165.28,18.14]
[1747749967807,63.99928881,165.36,165.28,18.14]
[1747749968392,21.16594096,165.36,165.28,18.14]
[1747749968593,21.16594096,165.36,165.27,33.8959]
[1747749968594,42.83334785,165.34,165.29,18.14]
[1747749969296,21.16594096,165.36,165.29,18.14]
[1747749970215,42.83334785,165.33,165.27,19.6855]
[1747749970789,42.83334785,165.32,165.27,18.14]
[1747749971014,42.83334785,165.31,165.25,21.4]
[1747749971313,42.83334785,165.32,165.25,21.4]
[1747749972422,42.97550942,165.33,165.25,21.4]
[1747749973091,0.14216157,165.33,165.25,21.4]
[1747749973293,42.83334785,165.33,165.25,21.4]
[1747749974398,6.0488749,165.32,165.25,21.4]
[1747749974917,6.0488749,165.32,165.29,26.0]
[1747749976220,15.12035805,165.34,165.29,26.0]
[1747749977098,15.12035805,165.34,165.27,26.0]
[1747749977523,6.04777744,165.35,165.28,18.64964886]
[1747749978225,21.16518732,165.37,165.29,1.5118]
[1747749978520,42.83334785,165.34,165.29,1.5118]
[1747749978722,42.97550942,165.33,165.27,21.4]
[1747749979020,42.83334785,165.29,165.24,11.37650039]
[1747749979405,0.14216157,165.33,165.24,11.37650039]
[1747749979598,42.83334785,165.32,165.24,11.37650039]
[1747749980423,64.00569072,165.31,165.24,29.51650039]
[1747749980912,42.83334785,165.3,165.24,29.51650039]
[1747749981602,42.83334785,165.29,165.24,11.37650039]
[1747749981919,42.83334785,165.26,165.24,11.37650039]
[1747749982216,6.05107103,165.26,165.24,11.37650039]
[1747749984218,15.12681452,165.27,165.24,11.37650039]
[1747749984821,6.04997277,165.29,165.24,11.37650039]
[1747749986327,15.12493193,165.29,165.24,11.37650039]
[1747749986626,43.22836268,165.29,165.24,11.37650039]
[1747749987623,28.10343075,165.28,165.24,11.37650039]
[1747749988014,43.22836268,165.29,165.24,11.37650039]
[1747749988327,21.1749047,165.29,165.24,11.37650039]
[1747749989329,79.52819932,165.29,165.24,11.37650039]
[1747749989523,28.10343075,165.28,165.24,11.37650039]
[1747749989826,28.10343075,165.25,165.24,11.37650039]
[1747749990331,34.15486796,165.25,165.24,11.37650039]
[1747749990705,34.29702953,165.25,165.24,11.37650039]
[1747749990913,0.14216157,165.24,165.17,21.4]
[1747749991118,28.10343075,165.18,165.12,8.51314665]
[1747749991314,28.10343075,165.16,165.12,8.51314665]
[1747749991629,28.10343075,165.14,165.12,8.51314665]
[1747749992001,28.10343075,165.15,165.09,18.14]
[1747749992202,28.10343075,165.16,165.09,18.14]
[1747749992435,21.19285497,165.15,165.09,18.14]
[1747749993136,21.19285497,165.15,165.08,41.1116]
[1747749993305,6.05510142,165.15,165.08,41.1116]
[1747749994746,6.05510142,165.15,165.09,18.64964886]
[1747749994929,6.05510142,165.15,165.09,44.64964886]
[1747749995503,6.05510142,165.15,165.09,26.0]
[1747749995709,48.74518084,165.15,165.09,26.0]
[1747749996029,63.88293439,165.15,165.09,26.0]
[1747749997747,21.19285497,165.15,165.09,26.0]
[1747749998839,15.13775355,165.15,165.09,26.0]
[1747750000539,15.13775355,165.15,165.08,22.9716]
[1747750000718,57.82783297,165.15,165.08,22.9716]
[1747750001037,42.69007942,165.12,165.08,21.4]
[1747750001223,42.69007942,165.12,165.06,18.14]
[1747750001619,21.19285497,165.15,165.06,18.14]
[1747750001620,42.69007942,165.13,165.06,18.14]
[1747750002823,42.69007942,165.12,165.04,27.5485]
[1747750003014,42.69007942,165.12,165.0,1.5517]
[1747750003015,42.69007942,165.07,165.0,1.5517]
[1747750003215,42.69007942,165.07,165.01,18.16]
[1747750003641,42.69007942,165.08,165.01,18.16]
[1747750004222,42.69007942,165.07,165.01,18.16]
[1747750004620,0.14216157,165.09,165.01,18.16]
[1747750004829,6.05803598,165.07,165.01,18.16]
[1747750005958,21.20312594,165.07,165.01,18.16]
[1747750006947,15.14007435,165.13,165.04,44.64964886]
[1747750007539,6.05510142,165.15,165.04,44.64964886]
[1747750008351,21.19285497,165.15,165.04,44.64964886]
[1747750008558,63.88293439,165.15,165.04,44.64964886]
[1747750009055,57.82783297,165.15,165.08,26.0]
[1747750009267,15.13775355,165.15,165.08,27.5424]
[1747750010233,21.19285497,165.15,165.08,27.5424]
[1747750010653,63.88293439,165.15,165.08,1.5424]
[1747750010838,42.69007942,165.14,165.08,1.5424]
[1747750011961,177.59007942,165.13,165.07,18.16]
[1747750012269,21.20055726,165.09,165.04,1.5585]
[1747750012862,63.89063668,165.09,165.02,18.16]
[1747750013251,63.89063668,165.09,165.02,44.16]
[1747750013764,21.20055726,165.09,165.02,44.16]
[1747750015640,49.37028789,165.09,165.02,44.16]
[1747750016565,28.16973063,165.08,165.0,48.9385]
[1747750016749,28.16973063,165.08,165.0,67.0985]
[1747750017111,21.20312594,165.07,165.0,67.0985]
[1747750019068,6.05730207,165.09,165.01,24.10382191]
[1747750020272,21.20055726,165.09,165.01,18.64964886]
[1747750020451,15.14325519,165.09,165.01,18.64964886]
[1747750020845,43.31298582,165.09,165.0,67.0985]
[1747750021053,28.16973063,165.08,165.0,67.0985]
[1747750021250,28.16973063,165.08,165.0,48.9385]
[1747750021450,28.16973063,165.08,165.01,18.16]
[1747750021651,21.20312594,165.07,165.01,18.16]
[1747750022475,6.05803598,165.07,165.01,36.80964886]
[1747750022774,6.05803598,165.07,165.01,18.16]
[1747750023767,21.20312594,165.07,165.01,18.16]
[1747750024172,156.10312594,165.07,165.0,22.9385]
[1747750024469,28.16973063,165.05,165.0,39.54]
[1747750024670,28.16973063,165.05,165.0,21.38]
[1747750025056,28.16973063,165.05,164.98,55.55426714]
[1747750025057,134.9,165.04,164.98,11.39426714]
[1747750025273,28.16973063,165.01,164.98,11.39426714]
[1747750025473,28.16973063,165.0,164.98,11.39426714]
[1747750026269,6.06097339,164.99,164.98,11.39426714]
[1747750026849,34.23070402,164.99,164.98,11.39426714]
[1747750027052,26.0,164.96,164.89,21.38]
[1747750027257,28.16973063,164.93,164.87,1.5803]
[1747750027463,26.0,164.96,164.86,18.16]
[1747750027464,28.16973063,164.92,164.86,18.16]
[1747750027674,28.16973063,164.91,164.86,18.16]
[1747750027857,28.16973063,164.9,164.84,21.38]
[1747750028268,6.06501698,164.88,164.84,21.38]
[1747750028470,21.22755943,164.88,164.84,21.38]
[1747750029057,6.06501698,164.88,164.84,21.38]
[1747750029354,15.15742562,164.94,164.85,18.64964886]
[1747750030167,15.15794579,164.93,164.85,18.64964886]
[1747750030383,28.16973063,164.91,164.84,21.38]
[1747750030572,28.16973063,164.9,164.84,39.56]
[1747750031679,28.16973063,164.9,164.84,18.18]
[1747750031871,28.16973063,164.89,164.83,1.5803]
[1747750032187,21.22884696,164.87,164.81,26.0]
[1747750032356,21.22884696,164.87,164.79,20.30094886]
[1747750032357,21.22884696,164.87,164.8,18.18]
[1747750032795,21.22884696,164.87,164.79,19.8313]
[1747750032956,49.39857759,164.87,164.79,19.8313]
[1747750033847,21.22884696,164.87,164.79,19.8313]
[1747750034587,49.39857759,164.87,164.79,19.8313]
[1747750034776,28.16973063,164.86,164.78,21.34]
[1747750034976,28.16973063,164.85,164.78,21.34]
[1747750035362,51.5557712,164.87,164.75,272.94204886]
[1747750035363,28.3118922,164.84,164.75,1.6124]
[1747750035566,28.16973063,164.81,164.72,27.5131]
[1747750035770,28.16973063,164.81,164.72,21.34]
[1747750035976,28.3118922,164.8,164.72,21.34]
[1747750036291,0.14216157,164.78,164.72,21.34]
[1747750036471,28.16973063,164.77,164.71,27.79118259]
[1747750036787,6.07053967,164.73,164.71,27.79118259]
[1747750036963,34.2402703,164.73,164.71,27.79118259]
[1747750037463,6.07053967,164.73,164.71,27.79118259]
[1747750038677,18.64964886,164.79,164.71,27.79118259]
[1747750038678,0.14216157,164.79,164.71,27.79118259]
[1747750038982,21.23786407,164.8,164.71,45.97118259]
[1747750039375,6.06796116,164.8,164.72,20.18334886]
[1747750040096,6.06767524,164.81,164.72,20.18334886]
[1747750040775,43.33871309,164.81,164.72,20.18334886]
[1747750041199,43.33871309,164.81,164.72,1.5337]
[1747750041200,0.14216157,164.8,164.72,1.5337]
[1747750041410,28.3118922,164.8,164.72,1.5337]
[1747750041700,28.16973063,164.77,164.71,27.79118259]
[1747750041903,0.14216157,164.79,164.71,27.79118259]
[1747750042076,0.14216157,164.8,164.71,27.79118259]
[1747750042403,0.14216157,164.8,164.71,33.25532532]
[1747750042698,28.16973063,164.75,164.71,27.79118259]
[1747750042884,28.16973063,164.73,164.71,27.79118259]
[1747750043201,6.07017117,164.74,164.71,27.79118259]
[1747750043407,28.16973063,164.73,164.71,27.79118259]
[1747750043578,6.07017117,164.74,164.71,27.79118259]
[1747750043787,34.2399018,164.74,164.71,27.79118259]
[1747750043994,28.16973063,164.73,164.71,27.79118259]
[1747750044503,28.3118922,164.72,164.71,27.79118259]
[1747750044883,34.3828004,164.72,164.71,27.79118259]
[1747750045304,6.21306977,164.72,164.71,27.79118259]
[1747750045480,6.0709082,164.72,164.71,27.79118259]
[1747750046176,34.24063883,164.72,164.71,27.79118259]
[1747750046383,6.0709082,164.72,164.71,27.79118259]
[1747750046907,6.07053967,164.73,164.71,27.79118259]
[1747750048783,15.17540006,164.75,164.71,27.79118259]
[1747750049104,26.0,164.74,164.71,27.79118259]
[1747750049692,26.0,164.74,164.73,28.27921277]
[1747750050009,26.0,164.74,164.71,27.79118259]
[1747750050203,26.0,164.74,164.71,56.07039536]
[1747750050504,26.0,164.74,164.72,28.27921277]
[1747750051509,6.07053967,164.73,164.71,27.79118259]
[1747750051805,21.23657544,164.81,164.72,58.11222554]
[1747750051984,21.23657544,164.81,164.78,28.27921277]
[1747750052189,21.23657544,164.81,164.77,28.27921277]
[1747750052390,26.0,164.78,164.72,48.03301277]
[1747750052627,21.23657544,164.81,164.77,28.27921277]
[1747750052819,47.23657544,164.81,164.8,28.27921277]
[1747750052982,6.06759298,164.81,164.8,28.27921277]
[1747750053407,47.23346054,164.84,164.8,28.27921277]
[1747750053612,47.23346054,164.84,164.81,28.27921277]
[1747750053910,47.23346054,164.84,164.76,28.27921277]
[1747750053911,26.0,164.81,164.76,28.27921277]
[1747750054095,28.27921277,164.83,164.78,28.27921277]
[1747750054295,0.14216157,164.83,164.79,28.27921277]
[1747750055511,47.23346054,164.84,164.8,28.27921277]
[1747750055716,26.0,164.81,164.77,28.27921277]
[1747750055897,0.14216157,164.8,164.76,28.27921277]
[1747750056907,0.14216157,164.8,164.72,1.5538]
[1747750057107,0.14216157,164.78,164.74,28.27921277]
[1747750057303,0.14216157,164.78,164.75,28.27921277]
[1747750057520,6.06906597,164.77,164.75,28.27921277]
[1747750058107,49.52094366,164.77,164.71,27.79118259]
[1747750058405,28.42137434,164.76,164.71,56.07039536]
[1747750058915,51.58706074,164.77,164.73,28.27921277]
[1747750059299,79.86627351,164.77,164.73,28.27921277]
[1747750059615,49.52481188,164.74,164.71,27.79118259]
[1747750059825,21.24559911,164.74,164.71,27.79118259]
[1747750060122,21.24559911,164.74,164.72,28.27921277]
[1747750060332,21.24559911,164.74,164.73,28.27921277]
[1747750060699,21.24559911,164.74,164.71,27.79118259]
[1747750060920,21.24559911,164.74,164.71,56.07039536]
[1747750061727,15.17542794,164.74,164.71,56.07039536]
[1747750062820,6.06980273,164.75,164.73,28.27921277]
[1747750062996,6.06980273,164.75,164.74,28.27921277]
[1747750063814,15.17338493,164.77,164.74,28.27921277]
[1747750064332,6.06869765,164.78,164.76,28.27921277]
[1747750064499,6.06869765,164.78,164.77,28.27921277]
[1747750065418,21.24044179,164.78,164.76,28.27921277]
[1747750065621,21.24044179,164.78,164.74,46.47921277]
[1747750066229,21.24044179,164.78,164.75,28.27921277]
[1747750066617,20.24044179,164.78,164.75,28.27921277]
[1747750066826,20.24044179,164.78,164.76,28.27921277]
[1747750067135,20.24044179,164.78,164.77,28.27921277]
[1747750067831,15.16898246,164.81,164.77,28.27921277]
[1747750068007,15.16898246,164.81,164.8,28.27921277]
[1747750068807,15.16898246,164.81,164.76,1.6521]
[1747750069009,15.16898246,164.81,164.79,28.27921277]
[1747750069540,6.06685676,164.83,164.8,56.55842554]
[1747750069710,6.06685676,164.83,164.82,28.27921277]
[1747750069905,26.0,164.87,164.82,28.27921277]
[1747750070107,51.54732614,164.9,164.86,28.27921277]
[1747750070403,26.0,164.87,164.8,46.47921277]
[1747750070715,26.0,164.87,164.85,28.27921277]
[1747750072030,6.06575275,164.86,164.79,6.1335]
[1747750072235,6.06575275,164.86,164.85,28.27921277]
[1747750072413,21.23013464,164.86,164.85,28.27921277]
[1747750072731,21.23013464,164.86,164.84,28.27921277]
[1747750073027,21.23013464,164.86,164.8,18.2]
[1747750073329,21.23013464,164.86,164.83,28.27921277]
[1747750073515,21.23013464,164.86,164.8,46.47921277]
[1747750073717,21.23013464,164.86,164.84,28.27921277]
[1747750074416,26.0,164.84,164.82,28.27921277]
[1747750074740,26.0,164.84,164.8,28.27921277]
[1747750074935,26.0,164.84,164.81,28.27921277]
[1747750075431,0.14216157,164.83,164.8,28.27921277]
[1747750075831,21.23534722,164.82,164.79,28.27921277]
[1747750076132,21.23534722,164.82,164.78,28.27921277]
[1747750076133,0.14216157,164.81,164.78,28.27921277]
[1747750077243,0.14216157,164.81,164.79,28.27921277]
[1747750077623,0.14216157,164.81,164.77,11.40906955]
[1747750077829,0.14216157,164.81,164.79,28.27921277]
[1747750078017,6.06796116,164.8,164.79,28.27921277]
[1747750079242,6.06796116,164.8,164.77,11.40906955]
[1747750079745,49.48250329,164.88,164.79,26.0]
[1747750079944,0.14216157,164.86,164.8,18.2]
[1747750080246,0.14216157,164.86,164.77,11.40906955]
[1747750080247,0.14216157,164.84,164.77,11.40906955]
[1747750080417,0.14216157,164.81,164.77,11.40906955]
[1747750082123,0.14216157,164.78,164.77,11.40906955]
[1747750082350,6.21085922,164.78,164.77,11.40906955]
[1747750083319,79.9810355,164.78,164.71,1.5541]
[1747750083519,0.14216157,164.76,164.71,1.5541]
[1747750083838,28.39710543,164.74,164.67,8.0803]
[1747750084348,21.38905041,164.73,164.67,8.0803]
[1747750084719,49.64399427,164.73,164.67,1.5051]
[1747750085352,0.14216157,164.71,164.67,1.5051]
[1747750085553,28.25494386,164.7,164.63,29.4484]
[1747750085756,0.14216157,164.68,164.63,22.9296]
[1747750085965,0.14216157,164.68,164.63,1.6096]
[1747750086329,6.07275156,164.67,164.63,1.6096]
[1747750086728,0.14216157,164.66,164.63,1.6096]
[1747750086934,28.39710543,164.66,164.59,6.5428]
[1747750087151,6.07275156,164.67,164.62,26.0]
[1747750087632,6.0709082,164.72,164.63,44.64964886]
[1747750087834,6.0709082,164.72,164.68,26.0]
[1747750088146,6.06980273,164.75,164.68,6.3977]
[1747750088443,6.06869765,164.78,164.68,27.7177]
[1747750088647,49.49538565,164.78,164.68,27.7177]
[1747750088822,28.25494386,164.76,164.68,27.7177]
[1747750089018,28.25494386,164.77,164.68,27.7177]
[1747750089249,51.58393007,164.78,164.68,27.7177]
[1747750089548,0.14216157,164.77,164.69,26.0]
[1747750089726,43.03786774,164.77,164.69,26.0]
[1747750089927,0.14216157,164.77,164.69,26.0]
[1747750091053,21.24302014,164.76,164.68,27.7177]
[1747750091350,21.24302014,164.76,164.68,53.7177]
[1747750092430,0.14216157,164.75,164.68,53.7177]
[1747750093155,6.07017117,164.74,164.68,71.9177]
[1747750093651,21.24559911,164.74,164.68,71.9177]
[1747750094538,6.07017117,164.74,164.71,26.0]
[1747750094743,6.06943432,164.76,164.71,26.0]
[1747750095047,99.23480785,164.81,164.71,26.0]
[1747750095048,21.23786407,164.8,164.71,26.0]
[1747750095243,64.13357024,164.8,164.71,26.0]
[1747750095645,0.14216157,164.79,164.71,26.0]
[1747750097360,6.06869765,164.78,164.71,26.0]
[1747750097838,6.06869765,164.78,164.73,26.0]
[1747750098360,6.06722485,164.82,164.73,26.0]
[1747750098656,0.14216157,164.81,164.73,26.0]
[1747750098855,0.14216157,164.81,164.74,18.2]
[1747750099454,21.23786407,164.8,164.74,18.2]
[1747750099757,6.06796116,164.8,164.75,26.0]
[1747750100351,6.06722485,164.82,164.77,26.0]
[1747750100579,6.06722485,164.82,164.76,6.5891]
[1747750101049,6.06722485,164.82,164.76,32.5891]
[1747750101466,0.14216157,164.85,164.79,26.0]
[1747750101646,15.16504493,164.86,164.79,26.0]
[1747750101853,0.14216157,164.85,164.79,26.0]
[1747750102055,15.16504493,164.86,164.79,26.0]
[1747750102453,0.14216157,164.85,164.79,26.0]
[1747750102968,0.14216157,164.83,164.76,24.7891]
[1747750103566,0.14216157,164.81,164.76,6.5891]
[1747750103740,0.14216157,164.78,164.72,1.5787]
[1747750103947,43.03786774,164.74,164.7,11.41351713]
[1747750104172,0.14216157,164.72,164.7,11.41351713]
[1747750104341,43.03786774,164.71,164.7,11.41351713]
[1747750105672,49.10914452,164.71,164.7,11.41351713]
[1747750106049,18.79181043,164.7,164.62,8.51314665]
[1747750106260,43.03786774,164.66,164.59,6.1107]
[1747750106447,43.03786774,164.66,164.58,21.3]